[Event "Titled Tuesday Blitz May 9 Early 2023"]
[White "Gutkin, Ilya"]
[Black "Mayaud, Raphael"]
[WhiteFideId "16203470"]
[BlackFideId "627151"]
[WhiteElo "2265"]
[BlackElo "2191"]
[Result "1-0"]
[Round "04"]
[TimeControl "180+2"]
[Date "2023.05.09"]
[WhiteClock "0:00:08"]
[BlackClock "0:00:04"]

1. e4 {[%clk 0:03:00]}  d5 {[%clk 0:02:53]} 2. exd5 {[%clk 0:03:00]}  Qxd5 {[%clk 0:02:53]} 3. Nc3 {[%clk 0:03:00]}  Qa5 {[%clk 0:02:53]} 4. Nf3 {[%clk 0:02:59]}  c6 {[%clk 0:02:53]} 5. d4 {[%clk 0:02:59]}  Nf6 {[%clk 0:02:54]} 6. h3 {[%clk 0:02:59]}  Bf5 {[%clk 0:02:54]} 7. Bd3 {[%clk 0:02:58]}  Bxd3 {[%clk 0:02:53]} 8. Qxd3 {[%clk 0:02:59]}  Qa6 {[%clk 0:02:54]} 9. Qxa6 {[%clk 0:02:57]}  Nxa6 {[%clk 0:02:55]} 10. Bg5 {[%clk 0:02:55]}  Nb4 {[%clk 0:02:54]} 11. O-O-O {[%clk 0:02:53]}  e6 {[%clk 0:02:53]} 12. Bxf6 {[%clk 0:02:52]}  gxf6 {[%clk 0:02:53]} 13. a3 {[%clk 0:02:52]}  Nd5 {[%clk 0:02:53]} 14. Nxd5 {[%clk 0:02:48]}  cxd5 {[%clk 0:02:52]} 15. c3 {[%clk 0:02:47]}  Kd7 {[%clk 0:02:51]} 16. Ne1 {[%clk 0:02:47]}  h5 {[%clk 0:02:49]} 17. Nd3 {[%clk 0:02:46]}  Bd6 {[%clk 0:02:46]} 18. g4 {[%clk 0:02:39]}  Rag8 {[%clk 0:02:43]} 19. f3 {[%clk 0:02:38]}  Rh6 {[%clk 0:02:33]} 20. Kd2 {[%clk 0:02:36]}  Rgh8 {[%clk 0:02:31]} 21. Nf2 {[%clk 0:02:10]}  hxg4 {[%clk 0:02:29]} 22. hxg4 {[%clk 0:02:07]}  Rh2 {[%clk 0:02:17]} 23. Rxh2 {[%clk 0:02:06]}  Rxh2 {[%clk 0:02:17]} 24. Ke3 {[%clk 0:02:06]}  Bf4+ {[%clk 0:02:11]} 25. Kxf4 {[%clk 0:01:47]}  Rxf2 {[%clk 0:02:11]} 26. Rb1 {[%clk 0:01:46]}  a5 {[%clk 0:01:53]} 27. Ke3 {[%clk 0:01:42]}  Rc2 {[%clk 0:01:52]} 28. a4 {[%clk 0:01:39]}  e5 {[%clk 0:01:45]} 29. Kd3 {[%clk 0:01:37]}  Rf2 {[%clk 0:01:45]} 30. Ke3 {[%clk 0:01:37]}  Rc2 {[%clk 0:01:38]} 31. Rd1 {[%clk 0:01:34]}  Ke6 {[%clk 0:01:28]} 32. Rd2 {[%clk 0:01:21]}  Rc1 {[%clk 0:01:06]} 33. Rh2 {[%clk 0:00:59]}  Ra1 {[%clk 0:01:04]} 34. Rh8 {[%clk 0:00:54]}  Rb1 {[%clk 0:00:55]} 35. Ra8 {[%clk 0:00:47]}  b6 {[%clk 0:00:52]} 36. Re8+ {[%clk 0:00:36]}  Kd7 {[%clk 0:00:49]} 37. Rb8 {[%clk 0:00:18]}  Rxb2 {[%clk 0:00:48]} 38. f4 {[%clk 0:00:16]}  e4 {[%clk 0:00:47]} 39. f5 {[%clk 0:00:13]}  Rc2 {[%clk 0:00:35]} 40. Rxb6 {[%clk 0:00:10]}  Rxc3+ {[%clk 0:00:36]} 41. Ke2 {[%clk 0:00:10]}  Rc4 {[%clk 0:00:36]} 42. Rxf6 {[%clk 0:00:10]}  Rxd4 {[%clk 0:00:36]} 43. Rxf7+ {[%clk 0:00:10]}  Kd6 {[%clk 0:00:36]} 44. g5 {[%clk 0:00:10]}  Rxa4 {[%clk 0:00:36]} 45. g6 {[%clk 0:00:10]}  d4 {[%clk 0:00:36]} 46. g7 {[%clk 0:00:10]}  Ra2+ {[%clk 0:00:37]} 47. Kd1 {[%clk 0:00:09]}  Rg2 {[%clk 0:00:37]} 48. f6 {[%clk 0:00:09]}  d3 {[%clk 0:00:19]} 49. Rf8 {[%clk 0:00:09]}  Rg1+ {[%clk 0:00:20]} 50. Kd2 {[%clk 0:00:09]}  Rg2+ {[%clk 0:00:19]} 51. Kc3 {[%clk 0:00:08]}  Rc2+ {[%clk 0:00:14]} 52. Kb3 {[%clk 0:00:08]}  Rg2 {[%clk 0:00:08]} 53. g8=Q {[%clk 0:00:08]}  Rxg8 {[%clk 0:00:08]} 54. Rxg8 {[%clk 0:00:09]}  e3 {[%clk 0:00:08]} 55. Kc3 {[%clk 0:00:09]}  e2 {[%clk 0:00:07]} 56. Kd2 {[%clk 0:00:08]}  Ke6 {[%clk 0:00:07]} 57. Ra8 {[%clk 0:00:07]}  Kxf6 {[%clk 0:00:04]} 58. Rxa5 {[%clk 0:00:08]} 1-0


[Site "https://www.chess.com"]

[Event "Titled Tuesday Blitz May 9 Early 2023"]
[White "Benmesbah, Natacha"]
[Black "Shubenkova, Veronika"]
[WhiteFideId "642002"]
[BlackFideId "44124040"]
[WhiteElo "2263"]
[BlackElo "2060"]
[Result "0-1"]
[Round "04"]
[TimeControl "180+2"]
[Date "2023.05.09"]
[WhiteClock "0:00:45"]
[BlackClock "0:02:14"]

1. e4 {[%clk 0:03:00]}  e6 {[%clk 0:02:56]} 2. Qe2 {[%clk 0:02:58]}  d5 {[%clk 0:02:57]} 3. d3 {[%clk 0:02:56]}  d4 {[%clk 0:02:55]} 4. e5 {[%clk 0:02:54]}  c5 {[%clk 0:02:55]} 5. f4 {[%clk 0:02:54]}  Nc6 {[%clk 0:02:55]} 6. Nf3 {[%clk 0:02:52]}  Nge7 {[%clk 0:02:54]} 7. a4 {[%clk 0:02:51]}  Nd5 {[%clk 0:02:54]} 8. Na3 {[%clk 0:02:50]}  Be7 {[%clk 0:02:53]} 9. Nc4 {[%clk 0:02:50]}  b6 {[%clk 0:02:54]} 10. g3 {[%clk 0:02:43]}  Bb7 {[%clk 0:02:53]} 11. Bg2 {[%clk 0:02:44]}  O-O {[%clk 0:02:52]} 12. O-O {[%clk 0:02:44]}  a6 {[%clk 0:02:53]} 13. g4 {[%clk 0:02:27]}  b5 {[%clk 0:02:52]} 14. Na3 {[%clk 0:02:26]}  Qb6 {[%clk 0:02:45]} 15. f5 {[%clk 0:02:18]}  c4 {[%clk 0:02:44]} 16. Ng5 {[%clk 0:01:24]}  Bxg5 {[%clk 0:02:36]} 17. Bxg5 {[%clk 0:01:23]}  Ne3 {[%clk 0:02:36]} 18. Bxe3 {[%clk 0:01:21]}  dxe3 {[%clk 0:02:35]} 19. dxc4 {[%clk 0:01:20]}  b4 {[%clk 0:02:33]} 20. c5 {[%clk 0:01:17]}  Qxc5 {[%clk 0:02:32]} 21. Nc4 {[%clk 0:01:17]}  Nd4 {[%clk 0:02:30]} 22. Qxe3 {[%clk 0:01:07]}  Bxg2 {[%clk 0:02:29]} 23. Kxg2 {[%clk 0:01:04]}  Qxc4 {[%clk 0:02:29]} 24. Rf4 {[%clk 0:01:02]}  Qxc2+ {[%clk 0:02:27]} 25. Rf2 {[%clk 0:01:01]}  Qc6+ {[%clk 0:02:25]} 26. Kh3 {[%clk 0:00:59]}  Nc2 {[%clk 0:02:18]} 27. Qg5 {[%clk 0:00:54]}  f6 {[%clk 0:02:16]} 28. Qd2 {[%clk 0:00:45]}  Nxa1 {[%clk 0:02:14]} 0-1


[Site "https://www.chess.com"]

[Event "Titled Tuesday Blitz May 9 Early 2023"]
[White "Goswami, Vedant"]
[Black "Rosenberg, Evan S"]
[WhiteFideId "5003725"]
[BlackFideId "2019299"]
[WhiteElo "2011"]
[BlackElo "2245"]
[Result "0-1"]
[Round "04"]
[TimeControl "180+2"]
[Date "2023.05.09"]
[WhiteClock "0:00:00"]
[BlackClock "0:00:12"]

1. b3 {[%clk 0:03:00]}  e5 {[%clk 0:02:59]} 2. Bb2 {[%clk 0:03:00]}  Nc6 {[%clk 0:03:00]} 3. e3 {[%clk 0:02:57]}  d5 {[%clk 0:03:00]} 4. Bb5 {[%clk 0:02:56]}  Ne7 {[%clk 0:03:01]} 5. Nf3 {[%clk 0:02:52]}  Bg4 {[%clk 0:02:54]} 6. h3 {[%clk 0:02:51]}  Bxf3 {[%clk 0:02:48]} 7. Qxf3 {[%clk 0:02:50]}  f6 {[%clk 0:02:40]} 8. O-O {[%clk 0:02:35]}  a6 {[%clk 0:02:40]} 9. Be2 {[%clk 0:02:32]}  Qd7 {[%clk 0:02:36]} 10. d3 {[%clk 0:02:12]}  O-O-O {[%clk 0:02:19]} 11. Nd2 {[%clk 0:02:08]}  Kb8 {[%clk 0:02:19]} 12. a3 {[%clk 0:02:07]}  h5 {[%clk 0:02:12]} 13. c4 {[%clk 0:02:03]}  d4 {[%clk 0:02:08]} 14. b4 {[%clk 0:01:37]}  dxe3 {[%clk 0:01:42]} 15. fxe3 {[%clk 0:01:36]}  Ng6 {[%clk 0:01:14]} 16. Ne4 {[%clk 0:01:06]}  Be7 {[%clk 0:00:59]} 17. Rad1 {[%clk 0:01:05]}  Rdf8 {[%clk 0:00:44]} 18. d4 {[%clk 0:00:45]}  exd4 {[%clk 0:00:40]} 19. exd4 {[%clk 0:00:44]}  f5 {[%clk 0:00:37]} 20. Nc5 {[%clk 0:00:43]}  Bxc5 {[%clk 0:00:37]} 21. dxc5 {[%clk 0:00:42]}  Qe7 {[%clk 0:00:29]} 22. Kh1 {[%clk 0:00:27]}  Nce5 {[%clk 0:00:29]} 23. Qc3 {[%clk 0:00:21]}  f4 {[%clk 0:00:26]} 24. Bf3 {[%clk 0:00:18]}  Nxf3 {[%clk 0:00:25]} 25. Rxf3 {[%clk 0:00:18]}  Nh4 {[%clk 0:00:24]} 26. Qxg7 {[%clk 0:00:10]}  Qe2 {[%clk 0:00:20]} 27. Rdf1 {[%clk 0:00:04]}  Rhg8 {[%clk 0:00:18]} 28. R3f2 {[%clk 0:00:00]}  Qe4 {[%clk 0:00:12]} 0-1


[Site "https://www.chess.com"]

[Event "Titled Tuesday Blitz May 9 Early 2023"]
[White "Womacka, Mathias"]
[Black "Melikhov, Evgeny V."]
[WhiteFideId "4611390"]
[BlackFideId "4122046"]
[WhiteElo "2377"]
[BlackElo "2158"]
[Result "1/2-1/2"]
[Round "04"]
[TimeControl "180+2"]
[Date "2023.05.09"]
[WhiteClock "0:00:48"]
[BlackClock "0:01:03"]

1. e4 {[%clk 0:02:23]}  e5 {[%clk 0:02:58]} 2. Nf3 {[%clk 0:02:21]}  Nc6 {[%clk 0:02:58]} 3. Bb5 {[%clk 0:02:21]}  a6 {[%clk 0:02:57]} 4. Bxc6 {[%clk 0:02:21]}  dxc6 {[%clk 0:02:57]} 5. O-O {[%clk 0:02:22]}  f6 {[%clk 0:02:56]} 6. d4 {[%clk 0:02:21]}  exd4 {[%clk 0:02:57]} 7. Nxd4 {[%clk 0:02:22]}  c5 {[%clk 0:02:57]} 8. Ne2 {[%clk 0:02:22]}  Qxd1 {[%clk 0:02:56]} 9. Rxd1 {[%clk 0:02:23]}  Bd7 {[%clk 0:02:56]} 10. Nbc3 {[%clk 0:02:23]}  O-O-O {[%clk 0:02:56]} 11. Be3 {[%clk 0:02:23]}  b6 {[%clk 0:02:31]} 12. a4 {[%clk 0:02:22]}  a5 {[%clk 0:02:28]} 13. Rd2 {[%clk 0:02:18]}  Be6 {[%clk 0:02:14]} 14. Rxd8+ {[%clk 0:02:13]}  Kxd8 {[%clk 0:02:14]} 15. Rd1+ {[%clk 0:02:13]}  Kc8 {[%clk 0:02:14]} 16. Nb5 {[%clk 0:01:54]}  g5 {[%clk 0:02:02]} 17. Nec3 {[%clk 0:01:27]}  Ne7 {[%clk 0:01:57]} 18. f3 {[%clk 0:01:18]}  Nc6 {[%clk 0:01:51]} 19. Bf2 {[%clk 0:01:18]}  Be7 {[%clk 0:01:30]} 20. Bg3 {[%clk 0:01:16]}  Ne5 {[%clk 0:01:27]} 21. Nd5 {[%clk 0:01:05]}  Bxd5 {[%clk 0:01:27]} 22. exd5 {[%clk 0:00:59]}  Bd6 {[%clk 0:01:20]} 23. Nxd6+ {[%clk 0:00:50]}  cxd6 {[%clk 0:01:20]} 24. Bxe5 {[%clk 0:00:50]}  fxe5 {[%clk 0:01:20]} 25. c4 {[%clk 0:00:49]}  Rf8 {[%clk 0:01:18]} 26. Re1 {[%clk 0:00:48]}  Rf4 {[%clk 0:01:15]} 27. b3 {[%clk 0:00:48]}  Rd4 {[%clk 0:01:14]} 28. Kf2 {[%clk 0:00:47]}  Rd2+ {[%clk 0:01:07]} 29. Re2 {[%clk 0:00:47]}  Rd3 {[%clk 0:01:06]} 30. Re3 {[%clk 0:00:47]}  Rd2+ {[%clk 0:01:03]} 31. Re2 {[%clk 0:00:47]}  Rd3 {[%clk 0:01:03]} 32. Re3 {[%clk 0:00:47]}  Rd2+ {[%clk 0:01:03]} 33. Re2 {[%clk 0:00:48]} 1/2-1/2


[Site "https://www.chess.com"]

[Event "Titled Tuesday Blitz May 9 Early 2023"]
[White "Ramirez Vido, Robert Yorisan"]
[Black "Maung, Maung Kyaw Zaw Hein"]
[WhiteFideId "3513823"]
[BlackFideId "13001698"]
[WhiteElo "2433"]
[BlackElo "2019"]
[Result "0-1"]
[Round "04"]
[TimeControl "180+2"]
[Date "2023.05.09"]
[WhiteClock "0:00:00"]
[BlackClock "0:00:44"]

1. f4 {[%clk 0:03:00]}  d5 {[%clk 0:02:59]} 2. Nf3 {[%clk 0:02:55]}  Nf6 {[%clk 0:02:59]} 3. g3 {[%clk 0:02:54]}  c5 {[%clk 0:02:58]} 4. d3 {[%clk 0:02:49]}  Nc6 {[%clk 0:02:56]} 5. Bg2 {[%clk 0:02:46]}  Bf5 {[%clk 0:02:55]} 6. O-O {[%clk 0:02:42]}  e6 {[%clk 0:02:56]} 7. Ne5 {[%clk 0:02:40]}  Nxe5 {[%clk 0:02:55]} 8. fxe5 {[%clk 0:02:39]}  Nd7 {[%clk 0:02:56]} 9. c4 {[%clk 0:02:35]}  Nxe5 {[%clk 0:02:51]} 10. cxd5 {[%clk 0:02:31]}  Bd6 {[%clk 0:02:44]} 11. dxe6 {[%clk 0:02:27]}  Bxe6 {[%clk 0:02:44]} 12. Bxb7 {[%clk 0:02:21]}  Rb8 {[%clk 0:02:43]} 13. Bg2 {[%clk 0:02:12]}  O-O {[%clk 0:02:41]} 14. Nc3 {[%clk 0:02:12]}  Re8 {[%clk 0:02:36]} 15. b3 {[%clk 0:01:53]}  Ng4 {[%clk 0:02:31]} 16. Bd2 {[%clk 0:00:59]}  Be5 {[%clk 0:02:27]} 17. Kh1 {[%clk 0:00:42]}  Bxc3 {[%clk 0:02:20]} 18. Bxc3 {[%clk 0:00:41]}  Ne3 {[%clk 0:02:21]} 19. Qd2 {[%clk 0:00:37]}  Nxf1 {[%clk 0:02:21]} 20. Rxf1 {[%clk 0:00:38]}  Bd5 {[%clk 0:02:18]} 21. e4 {[%clk 0:00:31]}  Be6 {[%clk 0:02:16]} 22. Qe3 {[%clk 0:00:28]}  h6 {[%clk 0:02:08]} 23. Qxc5 {[%clk 0:00:19]}  Qxd3 {[%clk 0:02:01]} 24. Qe5 {[%clk 0:00:13]}  f6 {[%clk 0:02:00]} 25. Qd4 {[%clk 0:00:13]}  Rbd8 {[%clk 0:01:52]} 26. Qxd3 {[%clk 0:00:08]}  Rxd3 {[%clk 0:01:53]} 27. Bb4 {[%clk 0:00:05]}  Rc8 {[%clk 0:01:50]} 28. Re1 {[%clk 0:00:01]}  Bg4 {[%clk 0:01:40]} 29. e5 {[%clk 0:00:01]}  fxe5 {[%clk 0:01:38]} 30. h3 {[%clk 0:00:02]}  Bf3 {[%clk 0:01:29]} 31. Rxe5 {[%clk 0:00:02]}  Rc1+ {[%clk 0:01:26]} 32. Re1 {[%clk 0:00:02]}  Rdd1 {[%clk 0:00:57]} 33. Rxd1 {[%clk 0:00:01]}  Rxd1+ {[%clk 0:00:57]} 34. Kh2 {[%clk 0:00:02]}  Bxg2 {[%clk 0:00:53]} 35. Kxg2 {[%clk 0:00:03]}  Ra1 {[%clk 0:00:53]} 36. a4 {[%clk 0:00:03]}  Rb1 {[%clk 0:00:52]} 37. Bc5 {[%clk 0:00:03]}  Rxb3 {[%clk 0:00:51]} 38. Bxa7 {[%clk 0:00:03]}  Ra3 {[%clk 0:00:52]} 39. Bc5 {[%clk 0:00:03]}  Rxa4 {[%clk 0:00:52]} 40. h4 {[%clk 0:00:03]}  g6 {[%clk 0:00:50]} 41. Be3 {[%clk 0:00:04]}  Kg7 {[%clk 0:00:50]} 42. Kh3 {[%clk 0:00:03]}  h5 {[%clk 0:00:47]} 43. Bf4 {[%clk 0:00:03]}  Kf6 {[%clk 0:00:47]} 44. Bg5+ {[%clk 0:00:04]}  Kf5 {[%clk 0:00:47]} 45. Bd8 {[%clk 0:00:04]}  Ra1 {[%clk 0:00:47]} 46. Bc7 {[%clk 0:00:03]}  Rd1 {[%clk 0:00:44]} 47. Bf4 {[%clk 0:00:03]}  Ke4 {[%clk 0:00:44]} 48. Bg5 {[%clk 0:00:02]}  Kf3 {[%clk 0:00:45]} 49. Kh2 {[%clk 0:00:00]}  Rd4 {[%clk 0:00:44]} 0-1


[Site "https://www.chess.com"]

[Event "Titled Tuesday Blitz May 9 Early 2023"]
[White "Shukhman, Anna"]
[Black "Barria Santos, Jose Guilherme"]
[WhiteFideId "54180058"]
[BlackFideId "1939300"]
[WhiteElo "2235"]
[BlackElo "2266"]
[Result "1-0"]
[Round "04"]
[TimeControl "180+2"]
[Date "2023.05.09"]
[WhiteClock "0:00:51"]
[BlackClock "0:01:58"]

1. e4 {[%clk 0:03:00]}  c5 {[%clk 0:03:00]} 2. Nf3 {[%clk 0:03:01]}  d6 {[%clk 0:03:00]} 3. d4 {[%clk 0:03:01]}  cxd4 {[%clk 0:03:01]} 4. Nxd4 {[%clk 0:03:02]}  Nf6 {[%clk 0:03:02]} 5. Nc3 {[%clk 0:03:03]}  a6 {[%clk 0:03:02]} 6. Qd3 {[%clk 0:03:03]}  e5 {[%clk 0:03:01]} 7. Nf5 {[%clk 0:03:03]}  Be6 {[%clk 0:02:58]} 8. Bg5 {[%clk 0:03:00]}  h6 {[%clk 0:02:50]} 9. Bxf6 {[%clk 0:02:54]}  gxf6 {[%clk 0:02:51]} 10. O-O-O {[%clk 0:02:53]}  Bxf5 {[%clk 0:02:50]} 11. exf5 {[%clk 0:02:54]}  Nd7 {[%clk 0:02:50]} 12. Nd5 {[%clk 0:02:54]}  Rc8 {[%clk 0:02:49]} 13. f4 {[%clk 0:02:39]}  h5 {[%clk 0:02:47]} 14. Kb1 {[%clk 0:02:37]}  Nb6 {[%clk 0:02:41]} 15. Qb3 {[%clk 0:02:31]}  Nxd5 {[%clk 0:02:41]} 16. Rxd5 {[%clk 0:02:24]}  Qc7 {[%clk 0:02:37]} 17. Be2 {[%clk 0:02:19]}  Bh6 {[%clk 0:02:31]} 18. fxe5 {[%clk 0:02:15]}  fxe5 {[%clk 0:02:28]} 19. Bxh5 {[%clk 0:02:14]}  Bf4 {[%clk 0:02:28]} 20. g4 {[%clk 0:02:02]}  Ke7 {[%clk 0:02:25]} 21. Bxf7 {[%clk 0:01:58]}  Rxh2 {[%clk 0:02:19]} 22. Rxh2 {[%clk 0:01:48]}  Bxh2 {[%clk 0:02:18]} 23. Rd2 {[%clk 0:01:41]}  Rh8 {[%clk 0:02:14]} 24. Qe6+ {[%clk 0:01:35]}  Kf8 {[%clk 0:02:12]} 25. Bg6 {[%clk 0:01:20]}  Qe7 {[%clk 0:02:08]} 26. Rxd6 {[%clk 0:01:05]}  Qxe6 {[%clk 0:02:08]} 27. Rxe6 {[%clk 0:00:52]}  Bf4 {[%clk 0:01:59]} 28. a3 {[%clk 0:00:52]}  Rh1+ {[%clk 0:01:58]} 29. Ka2 {[%clk 0:00:52]}  Rg1 {[%clk 0:01:58]} 30. f6 {[%clk 0:00:52]}  Rxg4 {[%clk 0:01:58]} 31. Re8# {[%clk 0:00:51]} 1-0


[Site "https://www.chess.com"]

[Event "Titled Tuesday Blitz May 9 Early 2023"]
[White "ZeGood_ZeBad_ZeUgly"]
[Black "Panda Sambit"]
[BlackFideId "25091794"]
[WhiteElo "2204"]
[BlackElo "2272"]
[Result "0-1"]
[Round "04"]
[TimeControl "180+2"]
[Date "2023.05.09"]
[WhiteClock "0:00:30"]
[BlackClock "0:01:03"]

1. Nf3 {[%clk 0:03:00]}  d5 {[%clk 0:02:59]} 2. g3 {[%clk 0:02:59]}  b6 {[%clk 0:02:58]} 3. Bg2 {[%clk 0:02:58]}  Bb7 {[%clk 0:02:59]} 4. O-O {[%clk 0:02:58]}  Nd7 {[%clk 0:02:58]} 5. d3 {[%clk 0:02:50]}  e5 {[%clk 0:02:56]} 6. Nbd2 {[%clk 0:02:48]}  Ngf6 {[%clk 0:02:56]} 7. e4 {[%clk 0:02:27]}  dxe4 {[%clk 0:02:55]} 8. dxe4 {[%clk 0:02:28]}  Bd6 {[%clk 0:02:52]} 9. Re1 {[%clk 0:02:27]}  Nc5 {[%clk 0:02:50]} 10. Nh4 {[%clk 0:02:23]}  O-O {[%clk 0:02:47]} 11. Nf5 {[%clk 0:02:20]}  g6 {[%clk 0:02:45]} 12. Nxd6 {[%clk 0:02:17]}  cxd6 {[%clk 0:02:46]} 13. c4 {[%clk 0:02:15]}  Rc8 {[%clk 0:02:38]} 14. b3 {[%clk 0:02:14]}  Nd3 {[%clk 0:02:37]} 15. Re3 {[%clk 0:02:09]}  Nxc1 {[%clk 0:02:35]} 16. Rxc1 {[%clk 0:02:10]}  Nd7 {[%clk 0:02:34]} 17. Nb1 {[%clk 0:02:06]}  Nc5 {[%clk 0:02:34]} 18. Nc3 {[%clk 0:02:06]}  f5 {[%clk 0:02:34]} 19. exf5 {[%clk 0:02:01]}  Bxg2 {[%clk 0:02:33]} 20. Kxg2 {[%clk 0:02:01]}  gxf5 {[%clk 0:02:33]} 21. Qd5+ {[%clk 0:01:49]}  Kh8 {[%clk 0:02:32]} 22. Rd1 {[%clk 0:01:49]}  Rf6 {[%clk 0:02:19]} 23. Nb5 {[%clk 0:01:39]}  f4 {[%clk 0:01:49]} 24. Rxe5 {[%clk 0:01:15]}  f3+ {[%clk 0:01:27]} 25. Kg1 {[%clk 0:01:14]}  Qd7 {[%clk 0:01:27]} 26. Rh5 {[%clk 0:01:05]}  Re8 {[%clk 0:01:24]} 27. Nxd6 {[%clk 0:01:02]}  Rxd6 {[%clk 0:01:19]} 28. Rxh7+ {[%clk 0:00:48]}  Kxh7 {[%clk 0:01:13]} 29. Qh5+ {[%clk 0:00:47]}  Kg8 {[%clk 0:01:03]} 30. Qg5+ {[%clk 0:00:30]}  Qg7 {[%clk 0:01:03]} 0-1


[Site "https://www.chess.com"]

[Event "Titled Tuesday Blitz May 9 Early 2023"]
[White "Avazkhonov, Alikhon"]
[Black "rionelG"]
[WhiteFideId "14208504"]
[WhiteElo "1739"]
[BlackElo "2200"]
[Result "1-0"]
[Round "04"]
[TimeControl "180+2"]
[Date "2023.05.09"]
[WhiteClock "0:00:15"]
[BlackClock "0:00:08"]

1. d4 {[%clk 0:03:00]}  Nf6 {[%clk 0:03:00]} 2. c4 {[%clk 0:03:01]}  g6 {[%clk 0:03:00]} 3. Nc3 {[%clk 0:03:02]}  Bg7 {[%clk 0:03:01]} 4. e4 {[%clk 0:03:02]}  O-O {[%clk 0:03:01]} 5. f3 {[%clk 0:03:02]}  d6 {[%clk 0:03:02]} 6. Be3 {[%clk 0:03:02]}  c5 {[%clk 0:03:02]} 7. Nge2 {[%clk 0:03:01]}  cxd4 {[%clk 0:02:59]} 8. Nxd4 {[%clk 0:03:02]}  Nc6 {[%clk 0:02:59]} 9. Be2 {[%clk 0:02:57]}  e6 {[%clk 0:02:59]} 10. Qd2 {[%clk 0:02:54]}  d5 {[%clk 0:03:00]} 11. cxd5 {[%clk 0:02:39]}  exd5 {[%clk 0:03:01]} 12. Bg5 {[%clk 0:02:38]}  dxe4 {[%clk 0:02:58]} 13. Nxc6 {[%clk 0:02:27]}  Qxd2+ {[%clk 0:02:50]} 14. Kxd2 {[%clk 0:02:27]}  bxc6 {[%clk 0:02:50]} 15. fxe4 {[%clk 0:02:28]}  Re8 {[%clk 0:02:37]} 16. Bf3 {[%clk 0:02:27]}  Nd7 {[%clk 0:02:31]} 17. Kc2 {[%clk 0:02:27]}  Ne5 {[%clk 0:02:30]} 18. Rad1 {[%clk 0:02:26]}  Be6 {[%clk 0:02:27]} 19. Rd6 {[%clk 0:02:14]}  Rab8 {[%clk 0:02:14]} 20. b3 {[%clk 0:02:09]}  h6 {[%clk 0:01:52]} 21. Bf4 {[%clk 0:02:08]}  g5 {[%clk 0:01:53]} 22. Bg3 {[%clk 0:02:05]}  Red8 {[%clk 0:01:37]} 23. Rhd1 {[%clk 0:02:04]}  Rxd6 {[%clk 0:01:37]} 24. Rxd6 {[%clk 0:02:05]}  g4 {[%clk 0:01:26]} 25. Be2 {[%clk 0:02:05]}  h5 {[%clk 0:01:27]} 26. Na4 {[%clk 0:02:04]}  c5 {[%clk 0:01:12]} 27. Nxc5 {[%clk 0:01:18]}  Rc8 {[%clk 0:01:11]} 28. b4 {[%clk 0:01:19]}  Nd7 {[%clk 0:00:57]} 29. Ba6 {[%clk 0:01:19]}  Nxc5 {[%clk 0:00:36]} 30. Bxc8 {[%clk 0:01:19]}  Nxe4 {[%clk 0:00:26]} 31. Rd8+ {[%clk 0:01:18]}  Kh7 {[%clk 0:00:22]} 32. a4 {[%clk 0:00:49]}  Nxg3 {[%clk 0:00:18]} 33. Bxe6 {[%clk 0:00:48]}  fxe6 {[%clk 0:00:17]} 34. hxg3 {[%clk 0:00:49]}  Kg6 {[%clk 0:00:16]} 35. Rd7 {[%clk 0:00:49]}  Bd4 {[%clk 0:00:15]} 36. Rxa7 {[%clk 0:00:49]}  Bxa7 {[%clk 0:00:15]} 37. a5 {[%clk 0:00:47]}  Kf6 {[%clk 0:00:13]} 38. b5 {[%clk 0:00:29]}  Ke5 {[%clk 0:00:13]} 39. Kd3 {[%clk 0:00:15]}  Kd5 {[%clk 0:00:09]} 40. b6 {[%clk 0:00:15]}  Bb8 {[%clk 0:00:08]} 41. a6 {[%clk 0:00:13]}  Kc6 {[%clk 0:00:09]} 42. a7 {[%clk 0:00:13]}  Kb7 {[%clk 0:00:09]} 43. axb8=Q+ {[%clk 0:00:11]}  Kxb8 {[%clk 0:00:10]} 44. Kd4 {[%clk 0:00:11]}  Kb7 {[%clk 0:00:11]} 45. Ke5 {[%clk 0:00:12]}  Kxb6 {[%clk 0:00:11]} 46. Kxe6 {[%clk 0:00:12]}  Kc6 {[%clk 0:00:10]} 47. Kf5 {[%clk 0:00:11]}  Kd6 {[%clk 0:00:10]} 48. Kg5 {[%clk 0:00:12]}  Ke6 {[%clk 0:00:11]} 49. Kxh5 {[%clk 0:00:12]}  Kf6 {[%clk 0:00:09]} 50. Kxg4 {[%clk 0:00:12]}  Kg6 {[%clk 0:00:10]} 51. Kf4 {[%clk 0:00:13]}  Kh5 {[%clk 0:00:10]} 52. g4+ {[%clk 0:00:14]}  Kg6 {[%clk 0:00:10]} 53. g5 {[%clk 0:00:15]}  Kg7 {[%clk 0:00:10]} 54. Kf5 {[%clk 0:00:14]}  Kf7 {[%clk 0:00:10]} 55. g6+ {[%clk 0:00:15]}  Kg7 {[%clk 0:00:08]} 56. Kg5 {[%clk 0:00:15]} 1-0


[Site "https://www.chess.com"]

[Event "Titled Tuesday Blitz May 9 Early 2023"]
[White "Lakshmi C"]
[Black "Qiao, Cindy"]
[WhiteFideId "25035347"]
[BlackFideId "2620243"]
[WhiteElo "1942"]
[BlackElo "1777"]
[Result "0-1"]
[Round "04"]
[TimeControl "180+2"]
[Date "2023.05.09"]
[WhiteClock "0:00:00"]
[BlackClock "0:00:34"]

1. e4 {[%clk 0:02:56]}  c5 {[%clk 0:02:59]} 2. Nf3 {[%clk 0:02:54]}  d6 {[%clk 0:02:59]} 3. d4 {[%clk 0:02:53]}  cxd4 {[%clk 0:03:00]} 4. Nxd4 {[%clk 0:02:53]}  Nf6 {[%clk 0:03:00]} 5. Nc3 {[%clk 0:02:54]}  g6 {[%clk 0:03:00]} 6. Be2 {[%clk 0:02:53]}  Bg7 {[%clk 0:03:00]} 7. O-O {[%clk 0:02:53]}  Nc6 {[%clk 0:02:59]} 8. Be3 {[%clk 0:02:52]}  O-O {[%clk 0:02:59]} 9. Nb3 {[%clk 0:02:52]}  Bd7 {[%clk 0:02:58]} 10. f4 {[%clk 0:02:51]}  Rc8 {[%clk 0:02:45]} 11. Bf3 {[%clk 0:02:49]}  a6 {[%clk 0:02:37]} 12. Nd5 {[%clk 0:02:43]}  Nxd5 {[%clk 0:02:31]} 13. exd5 {[%clk 0:02:43]}  Na5 {[%clk 0:02:30]} 14. Nxa5 {[%clk 0:02:34]}  Qxa5 {[%clk 0:02:31]} 15. c3 {[%clk 0:02:34]}  Qb5 {[%clk 0:02:19]} 16. Rf2 {[%clk 0:02:32]}  Bf5 {[%clk 0:02:04]} 17. Rd2 {[%clk 0:02:24]}  a5 {[%clk 0:01:55]} 18. Rc1 {[%clk 0:02:20]}  Qa6 {[%clk 0:01:50]} 19. Be2 {[%clk 0:02:16]}  b5 {[%clk 0:01:40]} 20. a4 {[%clk 0:02:15]}  Bd7 {[%clk 0:01:41]} 21. Qf1 {[%clk 0:02:13]}  Rb8 {[%clk 0:01:40]} 22. axb5 {[%clk 0:01:56]}  Bxb5 {[%clk 0:01:41]} 23. c4 {[%clk 0:01:56]}  Ba4 {[%clk 0:01:31]} 24. Ra1 {[%clk 0:01:09]}  Bd7 {[%clk 0:01:20]} 25. c5 {[%clk 0:01:08]}  Bb5 {[%clk 0:01:19]} 26. Bxb5 {[%clk 0:01:04]}  Rxb5 {[%clk 0:01:19]} 27. c6 {[%clk 0:00:57]}  e6 {[%clk 0:01:11]} 28. b4 {[%clk 0:00:09]}  a4 {[%clk 0:01:05]} 29. Rb1 {[%clk 0:00:06]}  exd5 {[%clk 0:01:04]} 30. Rxd5 {[%clk 0:00:06]}  Rfb8 {[%clk 0:00:54]} 31. Rxd6 {[%clk 0:00:05]}  Qc8 {[%clk 0:00:51]} 32. Qc4 {[%clk 0:00:02]}  Rf5 {[%clk 0:00:44]} 33. Rd7 {[%clk 0:00:02]}  Qe8 {[%clk 0:00:37]} 34. Bf2 {[%clk 0:00:00]}  Rc8 {[%clk 0:00:34]} 0-1


[Site "https://www.chess.com"]